[Event "Titled Tuesday Blitz December 27 Early 2022"]
[White "Vifleemskaia, Svetlana"]
[Black "Rosh Jain"]
[WhiteFideId "4129490"]
[BlackFideId "25789465"]
[WhiteElo "1971"]
[BlackElo "2248"]
[Result "1-0"]
[Round "10"]
[TimeControl "180+2"]
[Date "2022.12.27"]
[WhiteClock "0:00:14"]
[BlackClock "0:00:01"]

1. d4 {[%clk 0:03:00]}  Nf6 {[%clk 0:02:54]} 2. c4 {[%clk 0:02:56]}  e6 {[%clk 0:02:54]} 3. Nc3 {[%clk 0:02:56]}  d5 {[%clk 0:02:54]} 4. cxd5 {[%clk 0:02:55]}  exd5 {[%clk 0:02:54]} 5. Bg5 {[%clk 0:02:55]}  Be7 {[%clk 0:02:54]} 6. e3 {[%clk 0:02:55]}  h6 {[%clk 0:02:53]} 7. Bh4 {[%clk 0:02:54]}  O-O {[%clk 0:02:52]} 8. Bd3 {[%clk 0:02:54]}  c5 {[%clk 0:02:52]} 9. Nge2 {[%clk 0:02:54]}  Nc6 {[%clk 0:02:53]} 10. O-O {[%clk 0:02:53]}  cxd4 {[%clk 0:02:53]} 11. Nxd4 {[%clk 0:02:50]}  Nxd4 {[%clk 0:02:53]} 12. exd4 {[%clk 0:02:50]}  Be6 {[%clk 0:02:52]} 13. h3 {[%clk 0:02:46]}  Nd7 {[%clk 0:02:46]} 14. Bg3 {[%clk 0:02:44]}  Bh4 {[%clk 0:02:44]} 15. Bd6 {[%clk 0:02:42]}  Qb6 {[%clk 0:02:43]} 16. Bxf8 {[%clk 0:02:40]}  Rxf8 {[%clk 0:02:38]} 17. Na4 {[%clk 0:02:32]}  Qd6 {[%clk 0:02:34]} 18. f4 {[%clk 0:02:24]}  Bf6 {[%clk 0:02:28]} 19. f5 {[%clk 0:02:21]}  Bxd4+ {[%clk 0:02:26]} 20. Kh1 {[%clk 0:02:21]}  Qg3 {[%clk 0:02:17]} 21. Qf3 {[%clk 0:02:10]}  Qxf3 {[%clk 0:02:06]} 22. Rxf3 {[%clk 0:02:10]}  Ne5 {[%clk 0:01:53]} 23. fxe6 {[%clk 0:02:06]}  Nxf3 {[%clk 0:01:51]} 24. e7 {[%clk 0:01:44]}  Re8 {[%clk 0:01:38]} 25. gxf3 {[%clk 0:01:38]}  Rxe7 {[%clk 0:01:35]} 26. Rc1 {[%clk 0:01:34]}  g6 {[%clk 0:01:30]} 27. Kg2 {[%clk 0:01:34]}  Kg7 {[%clk 0:01:16]} 28. Nc3 {[%clk 0:01:24]}  Re3 {[%clk 0:00:42]} 29. Bf1 {[%clk 0:01:20]}  Re5 {[%clk 0:00:36]} 30. Rd1 {[%clk 0:01:06]}  Rg5+ {[%clk 0:00:33]} 31. Kh2 {[%clk 0:01:02]}  Be5+ {[%clk 0:00:23]} 32. Kh1 {[%clk 0:01:02]}  d4 {[%clk 0:00:21]} 33. Ne4 {[%clk 0:01:01]}  Rf5 {[%clk 0:00:20]} 34. Bg2 {[%clk 0:00:57]}  Rf4 {[%clk 0:00:19]} 35. Nf2 {[%clk 0:00:51]}  Bf6 {[%clk 0:00:15]} 36. Ne4 {[%clk 0:00:45]}  Be5 {[%clk 0:00:13]} 37. Nf2 {[%clk 0:00:39]}  Rf6 {[%clk 0:00:09]} 38. Ng4 {[%clk 0:00:38]}  Re6 {[%clk 0:00:08]} 39. Nxe5 {[%clk 0:00:38]}  Rxe5 {[%clk 0:00:08]} 40. Rxd4 {[%clk 0:00:38]}  Re2 {[%clk 0:00:03]} 41. Rb4 {[%clk 0:00:38]}  b6 {[%clk 0:00:02]} 42. f4 {[%clk 0:00:37]}  Kf6 {[%clk 0:00:02]} 43. Kh2 {[%clk 0:00:36]}  Kf5 {[%clk 0:00:02]} 44. Kg3 {[%clk 0:00:36]}  Rc2 {[%clk 0:00:02]} 45. Rb5+ {[%clk 0:00:34]}  Kf6 {[%clk 0:00:02]} 46. Rb4 {[%clk 0:00:32]}  Rd2 {[%clk 0:00:02]} 47. Bf3 {[%clk 0:00:30]}  Ke6 {[%clk 0:00:01]} 48. h4 {[%clk 0:00:27]}  f5 {[%clk 0:00:02]} 49. a4 {[%clk 0:00:25]}  Kf6 {[%clk 0:00:02]} 50. b3 {[%clk 0:00:24]}  Rd3 {[%clk 0:00:01]} 51. Kf2 {[%clk 0:00:19]}  Rc3 {[%clk 0:00:01]} 52. Be2 {[%clk 0:00:17]}  Rh3 {[%clk 0:00:01]} 53. a5 {[%clk 0:00:14]}  Rxh4 {[%clk 0:00:01]} 54. Kg3 {[%clk 0:00:14]} 1-0


[Site "https://www.chess.com"]

[Event "Titled Tuesday Blitz December 27 Early 2022"]
[White "Wagner, Dennis"]
[Black "Shuvalov, Evgenij"]
[WhiteFideId "24650684"]
[BlackFideId "4187237"]
[WhiteElo "2595"]
[BlackElo "2038"]
[Result "0-1"]
[Round "10"]
[TimeControl "180+2"]
[Date "2022.12.27"]
[WhiteClock "0:00:13"]
[BlackClock "0:00:16"]

1. d4 {[%clk 0:03:00]}  Nf6 {[%clk 0:02:48]} 2. Nf3 {[%clk 0:03:00]}  d5 {[%clk 0:02:47]} 3. c4 {[%clk 0:03:00]}  c6 {[%clk 0:02:47]} 4. cxd5 {[%clk 0:02:59]}  cxd5 {[%clk 0:02:47]} 5. Nc3 {[%clk 0:03:00]}  Nc6 {[%clk 0:02:47]} 6. Bf4 {[%clk 0:02:59]}  Bf5 {[%clk 0:02:48]} 7. Rc1 {[%clk 0:02:52]}  e6 {[%clk 0:02:46]} 8. Qb3 {[%clk 0:02:50]}  Bb4 {[%clk 0:02:45]} 9. e3 {[%clk 0:02:49]}  O-O {[%clk 0:02:44]} 10. Bb5 {[%clk 0:02:48]}  Rc8 {[%clk 0:02:23]} 11. O-O {[%clk 0:02:44]}  Be7 {[%clk 0:02:02]} 12. Bxc6 {[%clk 0:02:29]}  Rxc6 {[%clk 0:01:52]} 13. Qxb7 {[%clk 0:02:22]}  Rb6 {[%clk 0:01:52]} 14. Qxa7 {[%clk 0:02:21]}  Rxb2 {[%clk 0:01:52]} 15. Bc7 {[%clk 0:02:16]}  Qa8 {[%clk 0:01:47]} 16. Qxa8 {[%clk 0:02:10]}  Rxa8 {[%clk 0:01:48]} 17. Ne5 {[%clk 0:02:06]}  h6 {[%clk 0:01:40]} 18. Nc6 {[%clk 0:02:05]}  Ba3 {[%clk 0:01:34]} 19. Bd8 {[%clk 0:01:47]}  Rd2 {[%clk 0:00:50]} 20. Rb1 {[%clk 0:00:49]}  Bxb1 {[%clk 0:00:47]} 21. Nxb1 {[%clk 0:00:49]}  Rxa2 {[%clk 0:00:42]} 22. Nxa3 {[%clk 0:00:45]}  R2xa3 {[%clk 0:00:41]} 23. Bxf6 {[%clk 0:00:30]}  gxf6 {[%clk 0:00:41]} 24. Rc1 {[%clk 0:00:29]}  Ra1 {[%clk 0:00:40]} 25. Rf1 {[%clk 0:00:22]}  Rxf1+ {[%clk 0:00:30]} 26. Kxf1 {[%clk 0:00:23]}  Ra1+ {[%clk 0:00:25]} 27. Ke2 {[%clk 0:00:23]}  Rb1 {[%clk 0:00:24]} 28. g3 {[%clk 0:00:20]}  Kf8 {[%clk 0:00:22]} 29. Kd3 {[%clk 0:00:10]}  Rb2 {[%clk 0:00:20]} 30. f3 {[%clk 0:00:06]}  Rxh2 {[%clk 0:00:19]} 31. e4 {[%clk 0:00:07]}  Rh3 {[%clk 0:00:19]} 32. exd5 {[%clk 0:00:06]}  exd5 {[%clk 0:00:16]} 33. Nb4 {[%clk 0:00:06]}  Rxg3 {[%clk 0:00:16]} 34. Nxd5 {[%clk 0:00:07]}  Rxf3+ {[%clk 0:00:16]} 35. Ke4 {[%clk 0:00:08]}  Rf1 {[%clk 0:00:16]} 36. Nb6 {[%clk 0:00:06]}  h5 {[%clk 0:00:16]} 37. d5 {[%clk 0:00:07]}  Ke7 {[%clk 0:00:15]} 38. Nc8+ {[%clk 0:00:06]}  Kd7 {[%clk 0:00:15]} 39. Nb6+ {[%clk 0:00:07]}  Kd6 {[%clk 0:00:15]} 40. Nc4+ {[%clk 0:00:06]}  Kc5 {[%clk 0:00:15]} 41. Ne3 {[%clk 0:00:07]}  Re1 {[%clk 0:00:14]} 42. Kf3 {[%clk 0:00:05]}  Rxe3+ {[%clk 0:00:14]} 43. Kxe3 {[%clk 0:00:06]}  Kxd5 {[%clk 0:00:15]} 44. Kf4 {[%clk 0:00:07]}  Ke6 {[%clk 0:00:15]} 45. Ke4 {[%clk 0:00:08]}  f5+ {[%clk 0:00:15]} 46. Kf4 {[%clk 0:00:09]}  Kf6 {[%clk 0:00:16]} 47. Kg3 {[%clk 0:00:09]}  Kg5 {[%clk 0:00:16]} 48. Kh3 {[%clk 0:00:09]}  f4 {[%clk 0:00:17]} 49. Kg2 {[%clk 0:00:10]}  Kg4 {[%clk 0:00:17]} 50. Kf2 {[%clk 0:00:11]}  f3 {[%clk 0:00:17]} 51. Kg1 {[%clk 0:00:11]}  Kg3 {[%clk 0:00:17]} 52. Kh1 {[%clk 0:00:12]}  f6 {[%clk 0:00:16]} 53. Kg1 {[%clk 0:00:13]}  f2+ {[%clk 0:00:16]} 54. Kf1 {[%clk 0:00:13]}  h4 {[%clk 0:00:15]} 55. Ke2 {[%clk 0:00:13]}  Kg2 {[%clk 0:00:16]} 0-1


[Site "https://www.chess.com"]

[Event "Titled Tuesday Blitz December 27 Early 2022"]
[White "Weetik, Vjacheslav"]
[Black "Ovchinnikov, Vsevolod"]
[WhiteFideId "4153472"]
[BlackFideId "24176842"]
[WhiteElo "2423"]
[BlackElo "2426"]
[Result "1-0"]
[Round "10"]
[TimeControl "180+2"]
[Date "2022.12.27"]
[WhiteClock "0:00:37"]
[BlackClock "0:00:10"]

1. d4 {[%clk 0:02:55]}  Nf6 {[%clk 0:02:59]} 2. Nf3 {[%clk 0:02:55]}  g6 {[%clk 0:02:59]} 3. Bg5 {[%clk 0:02:54]}  Bg7 {[%clk 0:02:59]} 4. c3 {[%clk 0:02:54]}  d6 {[%clk 0:02:57]} 5. Nbd2 {[%clk 0:02:55]}  Nbd7 {[%clk 0:02:57]} 6. e4 {[%clk 0:02:55]}  h6 {[%clk 0:02:58]} 7. Bh4 {[%clk 0:02:55]}  g5 {[%clk 0:02:57]} 8. Bg3 {[%clk 0:02:54]}  Nh5 {[%clk 0:02:58]} 9. Bc4 {[%clk 0:02:47]}  e6 {[%clk 0:02:50]} 10. Qe2 {[%clk 0:02:44]}  a6 {[%clk 0:02:47]} 11. Bb3 {[%clk 0:02:41]}  Nf8 {[%clk 0:02:42]} 12. h4 {[%clk 0:02:33]}  Nxg3 {[%clk 0:02:35]} 13. fxg3 {[%clk 0:02:33]}  g4 {[%clk 0:02:36]} 14. Nh2 {[%clk 0:02:32]}  h5 {[%clk 0:02:36]} 15. O-O-O {[%clk 0:02:27]}  Bd7 {[%clk 0:02:30]} 16. Nhf1 {[%clk 0:02:25]}  Qe7 {[%clk 0:02:29]} 17. Ne3 {[%clk 0:02:25]}  O-O-O {[%clk 0:02:27]} 18. Rhf1 {[%clk 0:02:25]}  Ng6 {[%clk 0:02:27]} 19. Kb1 {[%clk 0:02:24]}  Bh6 {[%clk 0:02:25]} 20. Nc2 {[%clk 0:02:18]}  Bb5 {[%clk 0:02:18]} 21. Bc4 {[%clk 0:02:12]}  Bxc4 {[%clk 0:02:18]} 22. Nxc4 {[%clk 0:02:12]}  Rhf8 {[%clk 0:02:16]} 23. Nb4 {[%clk 0:02:07]}  Qd7 {[%clk 0:02:00]} 24. d5 {[%clk 0:01:55]}  Qb5 {[%clk 0:01:32]} 25. a4 {[%clk 0:01:04]}  Qxa4 {[%clk 0:01:18]} 26. Nb6+ {[%clk 0:00:50]}  cxb6 {[%clk 0:00:49]} 27. Qc4+ {[%clk 0:00:49]}  Kb8 {[%clk 0:00:41]} 28. Nc6+ {[%clk 0:00:48]}  bxc6 {[%clk 0:00:32]} 29. Qxa4 {[%clk 0:00:48]}  Ka7 {[%clk 0:00:18]} 30. Qxc6 {[%clk 0:00:40]}  Rc8 {[%clk 0:00:14]} 31. Qd7+ {[%clk 0:00:38]}  Ka8 {[%clk 0:00:13]} 32. Rxf7 {[%clk 0:00:39]}  Rxf7 {[%clk 0:00:12]} 33. Qxc8+ {[%clk 0:00:39]}  Ka7 {[%clk 0:00:11]} 34. Qxe6 {[%clk 0:00:39]}  Rg7 {[%clk 0:00:10]} 35. Rf1 {[%clk 0:00:37]} 1-0


[Site "https://www.chess.com"]

[Event "Titled Tuesday Blitz December 27 Early 2022"]
[White "Yuan, Qingyu"]
[Black "Xu, Yi"]
[WhiteFideId "8609772"]
[BlackFideId "8605564"]
[WhiteElo "2373"]
[BlackElo "2527"]
[Result "0-1"]
[Round "10"]
[TimeControl "180+2"]
[Date "2022.12.27"]
[WhiteClock "0:00:04"]
[BlackClock "0:00:39"]

1. e4 {[%clk 0:03:00]}  c5 {[%clk 0:02:58]} 2. Nf3 {[%clk 0:03:01]}  d6 {[%clk 0:02:58]} 3. d4 {[%clk 0:03:01]}  cxd4 {[%clk 0:02:58]} 4. Nxd4 {[%clk 0:03:02]}  Nf6 {[%clk 0:02:58]} 5. Nc3 {[%clk 0:03:03]}  a6 {[%clk 0:02:59]} 6. Rg1 {[%clk 0:03:03]}  h5 {[%clk 0:02:57]} 7. Be3 {[%clk 0:03:03]}  Nbd7 {[%clk 0:02:55]} 8. h3 {[%clk 0:02:55]}  g6 {[%clk 0:02:54]} 9. g4 {[%clk 0:02:50]}  hxg4 {[%clk 0:02:45]} 10. hxg4 {[%clk 0:02:51]}  Bg7 {[%clk 0:02:43]} 11. g5 {[%clk 0:02:50]}  Nh5 {[%clk 0:02:43]} 12. Be2 {[%clk 0:02:42]}  Ne5 {[%clk 0:02:20]} 13. f4 {[%clk 0:02:25]}  Nc6 {[%clk 0:02:21]} 14. Nd5 {[%clk 0:02:25]}  Bd7 {[%clk 0:01:41]} 15. Nxc6 {[%clk 0:02:10]}  Bxc6 {[%clk 0:01:38]} 16. Bb6 {[%clk 0:02:08]}  Qc8 {[%clk 0:01:38]} 17. Bg4 {[%clk 0:01:52]}  e6 {[%clk 0:01:07]} 18. Nc7+ {[%clk 0:01:48]}  Ke7 {[%clk 0:01:08]} 19. Nxa8 {[%clk 0:01:29]}  Qxa8 {[%clk 0:01:07]} 20. Bc7 {[%clk 0:00:55]}  d5 {[%clk 0:00:57]} 21. Bxh5 {[%clk 0:00:30]}  Rxh5 {[%clk 0:00:52]} 22. e5 {[%clk 0:00:30]}  Qa7 {[%clk 0:00:47]} 23. Kf1 {[%clk 0:00:16]}  Rh2 {[%clk 0:00:40]} 24. Qf3 {[%clk 0:00:05]}  Bb5+ {[%clk 0:00:39]} 25. Ke1 {[%clk 0:00:04]}  Qxg1+ {[%clk 0:00:39]} 26. Qf1 {[%clk 0:00:04]}  Qxf1# {[%clk 0:00:39]} 0-1


[Site "https://www.chess.com"]

[Event "Titled Tuesday Blitz December 27 Early 2022"]
[White "Akylbekov, Nasyr"]
[Black "Aghasiyev, Kamal"]
[WhiteFideId "13800353"]
[BlackFideId "13402854"]
[WhiteElo "2239"]
[BlackElo "2441"]
[Result "0-1"]
[Round "11"]
[TimeControl "180+2"]
[Date "2022.12.27"]
[WhiteClock "0:00:02"]
[BlackClock "0:00:01"]

1. e4 {[%clk 0:02:59]}  c5 {[%clk 0:02:56]} 2. Nf3 {[%clk 0:02:59]}  e6 {[%clk 0:02:54]} 3. Nc3 {[%clk 0:03:00]}  a6 {[%clk 0:02:51]} 4. d4 {[%clk 0:03:00]}  cxd4 {[%clk 0:02:48]} 5. Nxd4 {[%clk 0:03:01]}  b5 {[%clk 0:02:48]} 6. Bd3 {[%clk 0:03:00]}  Bb7 {[%clk 0:02:46]} 7. Qe2 {[%clk 0:02:58]}  Ne7 {[%clk 0:02:41]} 8. a4 {[%clk 0:02:55]}  b4 {[%clk 0:02:40]} 9. Na2 {[%clk 0:02:55]}  Nbc6 {[%clk 0:02:37]} 10. Nxc6 {[%clk 0:02:55]}  Nxc6 {[%clk 0:02:35]} 11. Be3 {[%clk 0:02:56]}  Be7 {[%clk 0:02:26]} 12. f4 {[%clk 0:02:52]}  O-O {[%clk 0:02:25]} 13. O-O {[%clk 0:02:52]}  d5 {[%clk 0:02:06]} 14. exd5 {[%clk 0:02:44]}  exd5 {[%clk 0:01:57]} 15. Qf2 {[%clk 0:02:41]}  Bf6 {[%clk 0:01:49]} 16. Rad1 {[%clk 0:02:33]}  Bxb2 {[%clk 0:01:45]} 17. Bc5 {[%clk 0:02:31]}  Qa5 {[%clk 0:01:26]} 18. Bxf8 {[%clk 0:02:26]}  Rxf8 {[%clk 0:01:26]} 19. Qh4 {[%clk 0:02:16]}  h6 {[%clk 0:01:12]} 20. Nc1 {[%clk 0:02:15]}  Bf6 {[%clk 0:01:06]} 21. Qh5 {[%clk 0:02:14]}  Ne7 {[%clk 0:00:51]} 22. Rfe1 {[%clk 0:02:04]}  Qxa4 {[%clk 0:00:48]} 23. Nb3 {[%clk 0:01:50]}  Qc6 {[%clk 0:00:41]} 24. Re3 {[%clk 0:01:42]}  Qb6 {[%clk 0:00:41]} 25. Re1 {[%clk 0:01:37]}  Bc3 {[%clk 0:00:37]} 26. Re2 {[%clk 0:01:33]}  a5 {[%clk 0:00:34]} 27. Kh1 {[%clk 0:01:30]}  Ng6 {[%clk 0:00:29]} 28. Qf5 {[%clk 0:01:09]}  a4 {[%clk 0:00:26]} 29. Nc1 {[%clk 0:01:09]}  Bd2 {[%clk 0:00:18]} 30. Re6 {[%clk 0:00:47]}  fxe6 {[%clk 0:00:12]} 31. Qxg6 {[%clk 0:00:47]}  Rf6 {[%clk 0:00:06]} 32. Qe8+ {[%clk 0:00:45]}  Rf8 {[%clk 0:00:06]} 33. Qg6 {[%clk 0:00:45]}  Rf6 {[%clk 0:00:07]} 34. Qh7+ {[%clk 0:00:35]}  Kf7 {[%clk 0:00:07]} 35. Rxd2 {[%clk 0:00:35]}  Qe3 {[%clk 0:00:06]} 36. Rd1 {[%clk 0:00:33]}  d4 {[%clk 0:00:07]} 37. Qh8 {[%clk 0:00:21]}  Qf2 {[%clk 0:00:06]} 38. Rg1 {[%clk 0:00:20]}  b3 {[%clk 0:00:06]} 39. Qb8 {[%clk 0:00:17]}  Bd5 {[%clk 0:00:05]} 40. Qc7+ {[%clk 0:00:15]}  Kg8 {[%clk 0:00:05]} 41. cxb3 {[%clk 0:00:15]}  axb3 {[%clk 0:00:05]} 42. Nxb3 {[%clk 0:00:11]}  Rxf4 {[%clk 0:00:03]} 43. Nc5 {[%clk 0:00:02]}  Qd2 {[%clk 0:00:01]} 0-1


[Site "https://www.chess.com"]

[Event "Titled Tuesday Blitz December 27 Early 2022"]
[White "Ankerst, Mihael"]
[Black "Gerbelli Neto, Eduardo"]
[WhiteFideId "14602369"]
[BlackFideId "2103281"]
[WhiteElo "2370"]
[BlackElo "2114"]
[Result "0-1"]
[Round "11"]
[TimeControl "180+2"]
[Date "2022.12.27"]
[WhiteClock "0:00:02"]
[BlackClock "0:00:13"]

1. e4 {[%clk 0:02:53]}  e5 {[%clk 0:02:58]} 2. Nf3 {[%clk 0:02:52]}  Nc6 {[%clk 0:02:59]} 3. Nc3 {[%clk 0:02:53]}  Nf6 {[%clk 0:02:59]} 4. d4 {[%clk 0:02:52]}  exd4 {[%clk 0:02:58]} 5. Nxd4 {[%clk 0:02:53]}  Bb4 {[%clk 0:02:58]} 6. Nxc6 {[%clk 0:02:53]}  bxc6 {[%clk 0:02:59]} 7. Bd3 {[%clk 0:02:54]}  d5 {[%clk 0:02:59]} 8. exd5 {[%clk 0:02:55]}  cxd5 {[%clk 0:03:00]} 9. O-O {[%clk 0:02:55]}  O-O {[%clk 0:03:00]} 10. Bg5 {[%clk 0:02:56]}  c6 {[%clk 0:03:00]} 11. Ne2 {[%clk 0:02:56]}  h6 {[%clk 0:02:56]} 12. Bh4 {[%clk 0:02:56]}  Bd6 {[%clk 0:02:55]} 13. Nd4 {[%clk 0:02:56]}  Bd7 {[%clk 0:02:53]} 14. Qf3 {[%clk 0:02:56]}  Rb8 {[%clk 0:02:51]} 15. b3 {[%clk 0:02:55]}  Be5 {[%clk 0:02:41]} 16. c3 {[%clk 0:02:55]}  c5 {[%clk 0:02:32]} 17. Nf5 {[%clk 0:02:55]}  Re8 {[%clk 0:01:53]} 18. Rac1 {[%clk 0:02:40]}  Bxf5 {[%clk 0:01:52]} 19. Qxf5 {[%clk 0:02:40]}  g6 {[%clk 0:01:52]} 20. Qf3 {[%clk 0:02:38]}  Kg7 {[%clk 0:01:46]} 21. Rfe1 {[%clk 0:02:38]}  Qd6 {[%clk 0:01:42]} 22. h3 {[%clk 0:02:19]}  Re6 {[%clk 0:01:25]} 23. c4 {[%clk 0:02:13]}  Rbe8 {[%clk 0:01:08]} 24. Bxf6+ {[%clk 0:02:06]}  Bxf6 {[%clk 0:00:52]} 25. Rxe6 {[%clk 0:02:06]}  fxe6 {[%clk 0:00:46]} 26. Re1 {[%clk 0:02:05]}  Bd4 {[%clk 0:00:37]} 27. Qg4 {[%clk 0:01:56]}  e5 {[%clk 0:00:33]} 28. cxd5 {[%clk 0:01:54]}  Rf8 {[%clk 0:00:33]} 29. Re2 {[%clk 0:01:51]}  Rf6 {[%clk 0:00:30]} 30. Qe4 {[%clk 0:01:35]}  Qf8 {[%clk 0:00:25]} 31. Kh1 {[%clk 0:01:26]}  Qf7 {[%clk 0:00:23]} 32. Rc2 {[%clk 0:00:51]}  Rf4 {[%clk 0:00:20]} 33. Qe1 {[%clk 0:00:42]}  Rxf2 {[%clk 0:00:18]} 34. Rxf2 {[%clk 0:00:23]}  Qxf2 {[%clk 0:00:19]} 35. Qxf2 {[%clk 0:00:23]}  Bxf2 {[%clk 0:00:20]} 36. g4 {[%clk 0:00:23]}  Bh4 {[%clk 0:00:19]} 37. Kg2 {[%clk 0:00:23]}  Kf6 {[%clk 0:00:19]} 38. Kf3 {[%clk 0:00:24]}  Bg5 {[%clk 0:00:19]} 39. Ke4 {[%clk 0:00:21]}  Bf4 {[%clk 0:00:15]} 40. Bb5 {[%clk 0:00:12]}  g5 {[%clk 0:00:15]} 41. d6 {[%clk 0:00:11]}  Ke6 {[%clk 0:00:15]} 42. d7 {[%clk 0:00:12]}  Ke7 {[%clk 0:00:16]} 43. Kd5 {[%clk 0:00:11]}  Bg3 {[%clk 0:00:12]} 44. Kxc5 {[%clk 0:00:10]}  e4 {[%clk 0:00:13]} 45. Kd4 {[%clk 0:00:10]}  Bc7 {[%clk 0:00:11]} 46. Kxe4 {[%clk 0:00:10]}  Ke6 {[%clk 0:00:12]} 47. Kd4 {[%clk 0:00:07]}  Bb6+ {[%clk 0:00:11]} 48. Kc4 {[%clk 0:00:07]}  Kd6 {[%clk 0:00:12]} 49. b4 {[%clk 0:00:07]}  a5 {[%clk 0:00:11]} 50. bxa5 {[%clk 0:00:04]}  Bxa5 {[%clk 0:00:12]} 51. Kd4 {[%clk 0:00:02]}  Bb6+ {[%clk 0:00:12]} 52. Ke4 {[%clk 0:00:02]}  Ke6 {[%clk 0:00:13]} 0-1


[Site "https://www.chess.com"]

[Event "Titled Tuesday Blitz December 27 Early 2022"]
[White "Avila Pavas, Santiago"]
[Black "Bilych, Olexiy"]
[WhiteFideId "4437128"]
[BlackFideId "14156504"]
[WhiteElo "2522"]
[BlackElo "2441"]
[Result "1-0"]
[Round "11"]
[TimeControl "180+2"]
[Date "2022.12.27"]
[WhiteClock "0:00:23"]
[BlackClock "0:00:30"]

1. d4 {[%clk 0:03:00]}  Nf6 {[%clk 0:02:57]} 2. Nf3 {[%clk 0:03:01]}  d5 {[%clk 0:02:56]} 3. Bf4 {[%clk 0:03:01]}  c5 {[%clk 0:02:55]} 4. e3 {[%clk 0:03:01]}  Nc6 {[%clk 0:02:55]} 5. Nc3 {[%clk 0:03:01]}  Bg4 {[%clk 0:02:48]} 6. Be2 {[%clk 0:03:02]}  Bxf3 {[%clk 0:02:43]} 7. Bxf3 {[%clk 0:03:02]}  cxd4 {[%clk 0:02:43]} 8. exd4 {[%clk 0:03:03]}  e6 {[%clk 0:02:42]} 9. O-O {[%clk 0:02:52]}  Bd6 {[%clk 0:02:41]} 10. Bxd6 {[%clk 0:02:48]}  Qxd6 {[%clk 0:02:42]} 11. Ne2 {[%clk 0:02:47]}  O-O {[%clk 0:02:41]} 12. c3 {[%clk 0:02:47]}  b5 {[%clk 0:02:40]} 13. a3 {[%clk 0:02:39]}  a5 {[%clk 0:02:32]} 14. Rc1 {[%clk 0:02:35]}  Rab8 {[%clk 0:02:27]} 15. Qd3 {[%clk 0:02:27]}  b4 {[%clk 0:02:23]} 16. axb4 {[%clk 0:02:23]}  axb4 {[%clk 0:02:24]} 17. c4 {[%clk 0:02:23]}  dxc4 {[%clk 0:02:20]} 18. Qxc4 {[%clk 0:02:24]}  Ne7 {[%clk 0:02:19]} 19. Qc5 {[%clk 0:02:09]}  Rfd8 {[%clk 0:02:18]} 20. Rc4 {[%clk 0:02:09]}  Nfd5 {[%clk 0:02:15]} 21. Rfc1 {[%clk 0:02:05]}  g6 {[%clk 0:02:13]} 22. g3 {[%clk 0:02:00]}  Kg7 {[%clk 0:02:07]} 23. h4 {[%clk 0:01:51]}  h5 {[%clk 0:02:06]} 24. Kg2 {[%clk 0:01:32]}  Rb6 {[%clk 0:02:04]} 25. Ng1 {[%clk 0:01:20]}  Ra6 {[%clk 0:01:57]} 26. Bxd5 {[%clk 0:01:16]}  Nxd5 {[%clk 0:01:54]} 27. Nf3 {[%clk 0:01:14]}  Ra2 {[%clk 0:01:52]} 28. R1c2 {[%clk 0:01:00]}  Ra1 {[%clk 0:01:37]} 29. Ng5 {[%clk 0:00:49]}  Rd1 {[%clk 0:01:28]} 30. Qa7 {[%clk 0:00:40]}  Rd7 {[%clk 0:01:16]} 31. Qc5 {[%clk 0:00:40]}  Qa6 {[%clk 0:01:12]} 32. Qc8 {[%clk 0:00:31]}  Qxc8 {[%clk 0:01:05]} 33. Rxc8 {[%clk 0:00:32]}  Rxd4 {[%clk 0:01:05]} 34. Rb8 {[%clk 0:00:33]}  Ne7 {[%clk 0:00:54]} 35. Rc5 {[%clk 0:00:24]}  Nd5 {[%clk 0:00:46]} 36. Rcc8 {[%clk 0:00:23]}  Rd2 {[%clk 0:00:45]} 37. Rg8+ {[%clk 0:00:21]}  Kh6 {[%clk 0:00:38]} 38. Rh8+ {[%clk 0:00:21]}  Kg7 {[%clk 0:00:38]} 39. Rh7+ {[%clk 0:00:22]}  Kf6 {[%clk 0:00:38]} 40. Ne4+ {[%clk 0:00:22]}  Ke5 {[%clk 0:00:38]} 41. Nxd2 {[%clk 0:00:23]}  Nf6 {[%clk 0:00:38]} 42. Nf3+ {[%clk 0:00:22]}  Kd5 {[%clk 0:00:33]} 43. Rhh8 {[%clk 0:00:22]}  Ng4 {[%clk 0:00:32]} 44. Rxb4 {[%clk 0:00:21]}  Rc7 {[%clk 0:00:32]} 45. Rd4+ {[%clk 0:00:20]}  Kc5 {[%clk 0:00:32]} 46. Rb8 {[%clk 0:00:20]}  e5 {[%clk 0:00:32]} 47. Rd1 {[%clk 0:00:21]}  Ra7 {[%clk 0:00:31]} 48. Rc8+ {[%clk 0:00:21]}  Kb4 {[%clk 0:00:31]} 49. Rb8+ {[%clk 0:00:20]}  Kc5 {[%clk 0:00:31]} 50. Rc1+ {[%clk 0:00:21]}  Kd5 {[%clk 0:00:32]} 51. Rd8+ {[%clk 0:00:21]}  Ke6 {[%clk 0:00:32]} 52. Rd2 {[%clk 0:00:21]}  Rb7 {[%clk 0:00:30]} 53. Rb1 {[%clk 0:00:21]}  Rb3 {[%clk 0:00:29]} 54. Re1 {[%clk 0:00:21]}  Kf5 {[%clk 0:00:29]} 55. Rxe5+ {[%clk 0:00:18]}  Nxe5 {[%clk 0:00:27]} 56. Nd4+ {[%clk 0:00:18]}  Ke4 {[%clk 0:00:28]} 57. Nxb3 {[%clk 0:00:19]}  Nc4 {[%clk 0:00:28]} 58. Rd4+ {[%clk 0:00:19]}  Ke5 {[%clk 0:00:28]} 59. Rxc4 {[%clk 0:00:20]}  f5 {[%clk 0:00:28]} 60. Rc3 {[%clk 0:00:21]}  f4 {[%clk 0:00:29]} 61. gxf4+ {[%clk 0:00:21]}  Kxf4 {[%clk 0:00:30]} 62. Nd2 {[%clk 0:00:21]}  Kg4 {[%clk 0:00:31]} 63. b4 {[%clk 0:00:22]}  g5 {[%clk 0:00:29]} 64. hxg5 {[%clk 0:00:22]}  h4 {[%clk 0:00:29]} 65. b5 {[%clk 0:00:22]}  h3+ {[%clk 0:00:30]} 66. Rxh3 {[%clk 0:00:23]} 1-0


[Site "https://www.chess.com"]

[Event "Titled Tuesday Blitz December 27 Early 2022"]
[White "Babazada, Khazar"]
[Black "Movahed, Sina"]
[WhiteFideId "13413554"]
[BlackFideId "42520835"]
[WhiteElo "2474"]
[BlackElo "2340"]
[Result "1-0"]
[Round "11"]
[TimeControl "180+2"]
[Date "2022.12.27"]
[WhiteClock "0:00:29"]
[BlackClock "0:00:09"]

1. e4 {[%clk 0:03:00]}  c5 {[%clk 0:02:59]} 2. Nf3 {[%clk 0:03:01]}  d6 {[%clk 0:02:59]} 3. d4 {[%clk 0:03:01]}  cxd4 {[%clk 0:03:00]} 4. Nxd4 {[%clk 0:03:02]}  Nf6 {[%clk 0:03:01]} 5. Nc3 {[%clk 0:03:02]}  g6 {[%clk 0:03:01]} 6. Be2 {[%clk 0:02:57]}  Bg7 {[%clk 0:03:01]} 7. Be3 {[%clk 0:02:57]}  O-O {[%clk 0:03:02]} 8. f3 {[%clk 0:02:56]}  Nc6 {[%clk 0:03:02]} 9. Qd2 {[%clk 0:02:55]}  Nxd4 {[%clk 0:02:51]} 10. Bxd4 {[%clk 0:02:53]}  Be6 {[%clk 0:02:51]} 11. g4 {[%clk 0:02:50]}  b5 {[%clk 0:02:40]} 12. h4 {[%clk 0:02:37]}  b4 {[%clk 0:02:39]} 13. Nd1 {[%clk 0:02:38]}  Qc7 {[%clk 0:02:32]} 14. h5 {[%clk 0:02:33]}  Rfc8 {[%clk 0:02:29]} 15. Ne3 {[%clk 0:02:30]}  a5 {[%clk 0:02:23]} 16. Bd3 {[%clk 0:02:26]}  Nxh5 {[%clk 0:01:57]} 17. Bxg7 {[%clk 0:02:03]}  Nxg7 {[%clk 0:01:58]} 18. Nf5 {[%clk 0:01:52]}  Bxf5 {[%clk 0:01:43]} 19. Qh6 {[%clk 0:01:41]}  Kf8 {[%clk 0:01:21]} 20. Qxh7 {[%clk 0:01:38]}  e6 {[%clk 0:01:17]} 21. gxf5 {[%clk 0:01:38]}  exf5 {[%clk 0:00:58]} 22. Qh8+ {[%clk 0:01:36]}  Ke7 {[%clk 0:00:57]} 23. Qxg7 {[%clk 0:01:37]}  Qc5 {[%clk 0:00:55]} 24. O-O-O {[%clk 0:01:26]}  b3 {[%clk 0:00:45]} 25. axb3 {[%clk 0:00:52]}  a4 {[%clk 0:00:41]} 26. exf5 {[%clk 0:00:53]}  a3 {[%clk 0:00:31]} 27. Rde1+ {[%clk 0:00:49]}  Kd8 {[%clk 0:00:15]} 28. Qxf7 {[%clk 0:00:29]}  axb2+ {[%clk 0:00:09]} 29. Kd2 {[%clk 0:00:29]} 1-0


[Site "https://www.chess.com"]